bitfinex/quotes_BTCUSD_20230110
["timestamp","ask_amount","ask_price","bid_price","bid_amount"]
[1673348083652,2.5298895,17274.0,17273.0,0.11256544]
[1673348083908,3.01700658,17274.0,17273.0,0.11256544]
[1673348084186,3.37799058,17274.0,17273.0,0.11256544]
[1673348085239,3.47665355,17274.0,17273.0,0.11256544]
[1673348085763,3.03084623,17274.0,17273.0,0.11256544]
[1673348086265,3.37815824,17274.0,17273.0,0.11256544]
[1673348086602,3.03084623,17274.0,17273.0,0.11256544]
[1673348086768,3.47665355,17274.0,17273.0,0.11256544]
[1673348087014,3.03084623,17274.0,17273.0,0.11256544]
[1673348087523,3.47665355,17274.0,17273.0,0.11256544]
[1673348087787,2.6413641,17274.0,17273.0,0.11256544]
[1673348088044,4.49480955,17274.0,17273.0,0.11256544]
[1673348088320,4.65490408,17274.0,17273.0,0.11256544]
[1673348088573,0.02360978,17272.0,17269.0,0.52747512]
[1673348088825,0.17368216,17270.0,17269.0,1.10654612]
[1673348089079,1.33188218,17270.0,17269.0,1.10654612]
[1673348089352,0.6023054,17271.0,17269.0,1.10654612]
[1673348089618,1.1584714,17270.0,17269.0,1.10654612]
[1673348090459,0.8123054,17271.0,17269.0,1.10954612]
[1673348090714,0.8123054,17271.0,17269.0,1.10654612]
[1673348090715,0.8023054,17271.0,17269.0,1.10654612]
[1673348091007,0.21,17270.0,17269.0,0.582071]
[1673348091530,0.91978863,17270.0,17269.0,0.582071]
[1673348091828,0.90978863,17270.0,17269.0,0.579071]
[1673348092108,2.57775725,17270.0,17269.0,0.003]
[1673348092372,3.64397119,17270.0,17268.0,5.579081]
[1673348092634,3.12788719,17270.0,17269.0,0.003]
[1673348092886,2.68324059,17270.0,17269.0,0.003]
[1673348093370,3.81771345,17270.0,17268.0,5.579081]
[1673348093616,0.528684,17269.0,17268.0,5.579081]
[1673348093873,0.1677,17269.0,17268.0,5.579081]
[1673348094391,0.78824963,17269.0,17268.0,5.579081]
[1673348095660,0.79524963,17269.0,17268.0,5.640081]
[1673348100988,0.007,17269.0,17268.0,5.061]
[1673348101251,0.007,17269.0,17268.0,7.78353016]
[1673348101532,0.007,17269.0,17268.0,6.95116561]
[1673348101805,0.007,17269.0,17268.0,7.65942147]
[1673348102066,0.007,17269.0,17268.0,7.60208564]
[1673348102367,0.007,17269.0,17268.0,7.77519361]
[1673348103458,0.007,17269.0,17268.0,8.0348483]
[1673348104018,0.007,17269.0,17268.0,7.69251412]
[1673348104272,0.007,17269.0,17268.0,8.0329124]
[1673348104531,0.007,17269.0,17268.0,8.20565255]
[1673348104793,0.007,17269.0,17268.0,7.85944934]
[1673348105600,0.00015,17271.0,17268.0,7.79844934]
[1673348105854,0.005,17269.0,17268.0,7.77961945]
[1673348106112,0.00015,17271.0,17270.0,0.2]
[1673348106418,0.00015,17271.0,17270.0,2.36437613]
[1673348106619,0.00015,17271.0,17270.0,2.8866558]
[1673348106843,0.005,17271.0,17270.0,2.8866558]
[1673348107124,0.02424934,17271.0,17270.0,2.8866558]
[1673348107901,0.01924934,17271.0,17270.0,3.1866558]
[1673348108168,0.02024934,17271.0,17270.0,3.63890786]
[1673348108422,0.02024934,17271.0,17270.0,3.2116558]
[1673348108681,0.02024934,17271.0,17270.0,3.63877397]
[1673348109661,0.02024934,17271.0,17270.0,3.6961098]
[1673348111245,0.02024934,17271.0,17270.0,3.63877397]
[1673348113046,0.02024934,17271.0,17270.0,3.81151716]
[1673348114107,0.02024934,17271.0,17270.0,3.63877397]
[1673348118012,0.001,17271.0,17270.0,3.63877397]
[1673348119057,0.01969367,17271.0,17270.0,3.63877397]
[1673348119437,0.01969367,17271.0,17270.0,3.3797558]
[1673348119681,0.01969367,17271.0,17270.0,3.80686248]
[1673348120402,0.01969367,17271.0,17270.0,3.97960567]
[1673348120925,0.001,17271.0,17270.0,3.80686248]
[1673348121187,0.001,17271.0,17270.0,3.97960567]
[1673348121420,0.001,17271.0,17270.0,3.80686248]
[1673348122357,0.00091148,17271.0,17270.0,3.80686248]
[1673348124716,0.00091148,17271.0,17270.0,3.3797558]
[1673348125222,0.00091148,17271.0,17270.0,3.80689908]
[1673348126775,0.00091148,17271.0,17270.0,3.97964227]
[1673348127047,0.01960515,17271.0,17270.0,3.97964227]
[1673348127554,0.01960515,17271.0,17270.0,3.39108447]
[1673348127807,0.01960515,17271.0,17270.0,4.17750184]
[1673348128060,0.01960515,17271.0,17270.0,4.52370809]
[1673348128371,0.01960515,17271.0,17270.0,4.17750184]
[1673348128578,0.01960515,17271.0,17270.0,4.35104199]
[1673348128827,0.01960515,17271.0,17270.0,4.58148094]
[1673348128828,0.00466552,17271.0,17270.0,4.58148094]
[1673348129327,0.00466552,17271.0,17270.0,4.52414511]
[1673348130332,0.00466552,17271.0,17270.0,4.58148094]
[1673348131567,0.00466552,17271.0,17270.0,4.84035854]
[1673348131812,0.00466552,17271.0,17270.0,4.40760073]
[1673348133077,0.00466552,17271.0,17270.0,5.05265004]
[1673348133334,0.00466552,17271.0,17270.0,4.40760073]
[1673348133576,0.00466552,17271.0,17270.0,5.09837895]
[1673348133847,0.00466552,17271.0,17270.0,4.40760073]
[1673348134346,0.00466552,17271.0,17270.0,4.93877814]
[1673348135600,0.00466552,17271.0,17270.0,4.40760073]
[1673348137127,0.00466552,17271.0,17270.0,4.84053459]
[1673348137409,0.00466552,17271.0,17270.0,4.58148094]
[1673348139371,0.00466552,17271.0,17270.0,4.41338094]
[1673348140136,0.00466552,17271.0,17270.0,4.94666225]
[1673348140382,0.00466552,17271.0,17270.0,4.600456]
[1673348140629,0.00466552,17271.0,17270.0,4.575456]
[1673348140880,0.70683428,17274.0,17272.0,1.736913]
[1673348141129,0.70683428,17274.0,17273.0,0.360984]
[1673348141397,0.70683428,17274.0,17272.0,2.14746691]
[1673348141624,0.70683428,17274.0,17272.0,1.90978902]
[1673348142622,0.70683428,17274.0,17273.0,0.012]
[1673348142869,0.70683428,17274.0,17273.0,1.157876]
[1673348143343,0.70883428,17274.0,17273.0,1.157876]
[1673348143632,0.70683428,17274.0,17273.0,1.157876]
[1673348143873,0.70683428,17274.0,17273.0,1.169876]
[1673348150017,0.19604476,17275.0,17273.0,1.169876]
[1673348155741,0.82140904,17275.0,17273.0,1.169876]
[1673348156241,1.08193228,17275.0,17273.0,1.169876]
[1673348156760,0.82140904,17275.0,17273.0,1.81502525]
[1673348157002,0.82140904,17275.0,17273.0,1.80302525]
[1673348157262,0.82140904,17275.0,17273.0,1.81502525]
[1673348158271,1.08193228,17275.0,17273.0,1.81502525]
[1673348161772,1.08193228,17275.0,17273.0,1.81278225]
[1673348162512,0.82140904,17275.0,17273.0,1.81278225]
[1673348163297,1.08193228,17275.0,17273.0,1.81278225]
[1673348165537,1.15818739,17274.0,17273.0,1.81278225]
[1673348166559,1.08193228,17275.0,17273.0,1.32850902]
[1673348166809,1.08193228,17275.0,17273.0,1.34050902]
[1673348167086,1.08193228,17275.0,17273.0,2.02089149]
[1673348167342,1.15817984,17274.0,17273.0,2.02089149]
[1673348167655,1.15817984,17274.0,17273.0,2.00889149]
[1673348167874,1.15817984,17274.0,17273.0,2.02089149]
[1673348168694,1.15817984,17274.0,17273.0,2.00889149]
[1673348168920,1.15817984,17274.0,17273.0,2.02089149]
[1673348169991,1.08193228,17275.0,17273.0,2.63476556]
[1673348170204,1.08193228,17275.0,17274.0,0.360984]
[1673348170205,0.82140904,17275.0,17274.0,0.360984]
[1673348170454,1.08193228,17275.0,17274.0,1.157808]
[1673348170713,1.97956165,17275.0,17274.0,1.157808]
[1673348171994,1.35419737,17275.0,17274.0,1.157808]
[1673348172548,1.39519737,17275.0,17274.0,1.71857737]
[1673348175066,1.39519737,17275.0,17274.0,1.89145339]
[1673348175307,1.22176173,17275.0,17274.0,1.89145339]
[1673348176055,0.06360912,17275.0,17274.0,1.89145339]
[1673348176320,0.06360912,17275.0,17274.0,2.19145339]
[1673348176588,0.06360912,17275.0,17274.0,1.89145339]
[1673348178017,0.06360912,17275.0,17274.0,1.71857737]
[1673348178519,0.06360912,17275.0,17274.0,1.89145339]
[1673348178762,0.06360912,17275.0,17274.0,1.71857737]
[1673348179020,1.22173364,17275.0,17274.0,1.71857737]
[1673348180055,0.06360912,17275.0,17274.0,1.71857737]
[1673348181036,0.06360912,17275.0,17274.0,1.89145339]
[1673348181758,0.06360912,17275.0,17274.0,2.19145339]
[1673348183274,0.06348925,17275.0,17274.0,1.89145339]
[1673348183533,0.06348925,17275.0,17274.0,2.63593243]
[1673348183796,0.06348925,17275.0,17274.0,2.19145339]
[1673348188342,0.06348925,17275.0,17274.0,1.89145339]
[1673348188595,0.06348925,17275.0,17274.0,1.71857737]
[1673348200889,0.06348925,17275.0,17274.0,2.01857737]
[1673348201136,0.06348925,17275.0,17274.0,1.71857737]
[1673348205533,0.06348925,17275.0,17274.0,1.89145339]
[1673348207250,0.06348925,17275.0,17274.0,1.71857737]
[1673348207473,0.06348925,17275.0,17274.0,1.89145339]
[1673348208494,0.06348925,17275.0,17274.0,2.19145339]
[1673348208998,0.06348925,17275.0,17274.0,1.89145339]
[1673348209259,0.06348925,17275.0,17274.0,2.15076742]
[1673348209520,0.06348925,17275.0,17274.0,2.45076742]
[1673348210038,0.06348925,17275.0,17274.0,3.14883726]
[1673348210295,0.06348925,17275.0,17274.0,3.50982126]
[1673348210793,0.06348925,17275.0,17274.0,3.78142474]
[1673348211036,0.06337905,17275.0,17274.0,3.95486852]
[1673348211532,0.06337905,17275.0,17274.0,3.33714621]
[1673348211798,0.06337905,17275.0,17274.0,3.42059577]
[1673348212050,0.06337905,17275.0,17274.0,2.8628264]
[1673348212311,0.06337905,17275.0,17274.0,3.96234072]
[1673348213364,0.02237905,17275.0,17274.0,3.78609263]
[1673348213601,0.02237905,17275.0,17274.0,4.21885044]
[1673348213863,0.02237905,17275.0,17274.0,3.78609263]
[1673348214121,0.02537905,17275.0,17274.0,3.92509263]
[1673348214471,0.02537905,17275.0,17274.0,4.35785044]
[1673348214916,0.02537905,17275.0,17274.0,4.09834072]
[1673348215431,0.02537905,17275.0,17274.0,3.92500661]
[1673348215705,0.02537905,17275.0,17274.0,3.53305321]
[1673348215963,0.02537905,17275.0,17274.0,4.12700088]
[1673348216497,0.02537905,17275.0,17274.0,4.11704884]
[1673348216748,0.02537905,17275.0,17274.0,3.68429103]
[1673348217513,0.02537905,17275.0,17274.0,4.11639838]
[1673348217768,0.02537905,17275.0,17274.0,3.68429103]
[1673348218025,0.00968047,17275.0,17274.0,3.85189103]
[1673348218252,0.00968047,17275.0,17274.0,3.68419103]
[1673348219493,0.00968047,17275.0,17274.0,4.11613222]
[1673348221274,0.00968047,17275.0,17274.0,4.11610125]
[1673348222282,0.00968047,17275.0,17274.0,4.17343708]
[1673348222536,0.00968047,17275.0,17274.0,4.11610125]
[1673348223549,0.00968047,17275.0,17274.0,4.11580242]
[1673348223799,0.00908047,17275.0,17274.0,5.01753429]
[1673348224061,0.00908047,17275.0,17274.0,5.27574442]
[1673348224333,0.00908047,17275.0,17274.0,5.01662437]
[1673348224622,0.00908047,17275.0,17274.0,5.27574983]
[1673348224883,0.00908047,17275.0,17274.0,3.94989194]
[1673348225101,0.00908047,17275.0,17274.0,2.3856259]
[1673348225352,0.00908047,17275.0,17274.0,2.0246419]
[1673348225622,0.00908047,17275.0,17274.0,1.85186388]
[1673348226381,0.00908047,17275.0,17274.0,1.83346388]
[1673348236210,0.02640779,17275.0,17274.0,1.83346388]
[1673348238476,0.02640779,17275.0,17274.0,1.81536388]
[1673348240051,0.02640779,17275.0,17274.0,2.11536388]
[1673348241527,0.02640779,17275.0,17274.0,2.56007058]
[1673348241777,0.02640779,17275.0,17274.0,3.0938326]
[1673348242293,0.02640779,17275.0,17274.0,3.35295806]
[1673348242546,0.02640779,17275.0,17274.0,3.67152287]
[1673348242808,0.02640779,17275.0,17274.0,3.67151621]
[1673348243321,0.02640779,17275.0,17274.0,3.11484623]
[1673348243549,0.02640779,17275.0,17274.0,3.76348767]
[1673348243794,0.02640779,17275.0,17274.0,3.93617689]
[1673348244329,0.02640779,17275.0,17274.0,3.28753545]
[1673348245082,0.02640779,17275.0,17274.0,3.97059381]
[1673348246321,0.02640779,17275.0,17274.0,3.28753545]
[1673348246807,0.02640779,17275.0,17274.0,4.03653318]
[1673348247070,0.02640779,17275.0,17274.0,3.34487128]
[1673348248323,0.02640779,17275.0,17274.0,3.28753545]
[1673348248575,0.02640779,17275.0,17274.0,3.93881895]
[1673348248831,0.02640779,17275.0,17274.0,4.37072917]
[1673348249325,0.02640779,17275.0,17274.0,4.37074929]
[1673348249573,0.02640779,17275.0,17274.0,4.11160371]
[1673348250056,0.02640779,17275.0,17274.0,4.68371542]
[1673348250301,0.02640779,17275.0,17274.0,4.11160371]
[1673348250549,0.02640779,17275.0,17274.0,4.83047908]
[1673348251553,0.02640779,17275.0,17274.0,5.08959693]
[1673348251807,0.02640779,17275.0,17274.0,4.83047908]
[1673348252059,0.02640779,17275.0,17274.0,4.65768602]
[1673348252311,0.02640779,17275.0,17274.0,5.08959624]
[1673348252561,0.02640779,17275.0,17274.0,4.39856886]
[1673348252807,0.02640779,17275.0,17274.0,4.65768779]
[1673348254319,0.02640779,17275.0,17274.0,4.60035196]
[1673348254569,0.02640779,17275.0,17274.0,4.65768779]
[1673348258084,0.02640779,17275.0,17274.0,4.38573309]
[1673348258349,0.02640779,17275.0,17274.0,4.04026585]
[1673348258599,0.02640779,17275.0,17274.0,3.98293002]
[1673348258865,0.02640779,17275.0,17274.0,4.42754538]
[1673348261687,0.02634247,17275.0,17274.0,4.42754538]
[1673348264441,0.02634247,17275.0,17274.0,4.77301262]
[1673348264693,0.02634247,17275.0,17274.0,4.60026062]
[1673348266863,0.02634247,17275.0,17274.0,3.98298982]
[1673348267397,0.02634247,17275.0,17274.0,3.98067798]
[1673348267652,0.02634247,17275.0,17274.0,3.66443167]
[1673348267907,0.02634247,17275.0,17274.0,3.98068821]
[1673348268163,0.02634247,17275.0,17274.0,4.42539491]
[1673348268910,0.02634247,17275.0,17274.0,4.65538618]
[1673348269208,0.02634247,17275.0,17274.0,4.482736]
[1673348270203,0.02634247,17275.0,17274.0,4.65538618]
[1673348271475,0.02634247,17275.0,17274.0,4.85538618]
[1673348272736,0.02634247,17275.0,17274.0,5.2872244]
[1673348273235,0.02634247,17275.0,17274.0,5.02810547]
[1673348273457,0.02634247,17275.0,17274.0,5.28736952]
[1673348273969,0.02634247,17275.0,17274.0,5.02810547]
[1673348274735,0.02634247,17275.0,17274.0,4.68263823]
[1673348275886,0.02634247,17275.0,17274.0,4.68290251]
[1673348277951,0.02634247,17275.0,17274.0,4.25072801]
[1673348278453,0.02634247,17275.0,17274.0,4.19339218]
[1673348278705,0.02634247,17275.0,17274.0,4.25072801]
[1673348281896,0.02634247,17275.0,17274.0,4.23841108]
[1673348282152,0.02634247,17275.0,17274.0,4.68298202]
[1673348282407,0.02634247,17275.0,17274.0,4.68302725]
[1673348282937,0.02634247,17275.0,17274.0,4.23841108]
[1673348283454,0.02634247,17275.0,17274.0,4.58440125]
[1673348283716,0.02634247,17275.0,17274.0,4.41152214]
[1673348283967,0.02634247,17275.0,17274.0,4.05053814]
[1673348284216,0.02634247,17275.0,17274.0,4.41152214]
[1673348284730,0.02634247,17275.0,17274.0,6.41152214]
[1673348285263,0.02634247,17275.0,17274.0,6.58451179]
[1673348285512,0.02634247,17275.0,17274.0,6.18118964]
[1673348285804,0.02634247,17275.0,17274.0,5.88118964]
[1673348286028,0.02634247,17275.0,17274.0,6.18118964]
[1673348286290,0.02634247,17275.0,17274.0,6.00819614]
[1673348286527,0.02634247,17275.0,17274.0,6.35418631]
[1673348288045,0.02634247,17275.0,17274.0,6.79889301]
[1673348288813,0.02634247,17275.0,17274.0,6.35418631]
[1673348289063,0.02634247,17275.0,17274.0,6.79889301]
[1673348289327,0.02634247,17275.0,17274.0,6.35418631]
[1673348290376,0.02634247,17275.0,17274.0,6.79889301]
[1673348292640,0.02634247,17275.0,17274.0,7.23128278]
[1673348292921,0.02634247,17275.0,17274.0,6.97177212]
[1673348295946,0.02634247,17275.0,17274.0,6.52706542]
[1673348296193,0.02634247,17275.0,17274.0,6.79880835]
[1673348296448,0.02634247,17275.0,17274.0,6.52706542]
[1673348296694,0.02634247,17275.0,17274.0,6.97177212]
[1673348297415,0.02627235,17275.0,17274.0,6.97177212]
[1673348298159,0.02627235,17275.0,17274.0,6.52706542]
[1673348298422,0.02627235,17275.0,17274.0,6.97172703]
[1673348300680,0.02627235,17275.0,17274.0,6.52706542]
[1673348300929,0.02627235,17275.0,17274.0,6.97172705]
[1673348303216,0.02627235,17275.0,17274.0,6.97177212]
[1673348305793,0.02627235,17275.0,17274.0,7.23115332]
[1673348306042,0.02627235,17275.0,17274.0,6.52706542]
[1673348306306,0.02627235,17275.0,17274.0,6.97177212]
[1673348314865,0.02627235,17275.0,17274.0,6.08301681]
[1673348315444,0.00865114,17275.0,17274.0,6.08301681]
[1673348316127,0.00865114,17275.0,17274.0,7.09932405]
[1673348317947,0.00865114,17275.0,17274.0,6.58001468]
[1673348318156,0.00865114,17275.0,17274.0,6.67728759]
[1673348318408,0.00865114,17275.0,17274.0,6.07728759]
[1673348318680,0.00865114,17275.0,17274.0,5.48301681]
[1673348318934,0.00865114,17275.0,17274.0,6.08301681]
[1673348320229,0.00865114,17275.0,17274.0,6.5787486]
[1673348320522,0.00865114,17275.0,17274.0,6.08301681]
[1673348321987,0.00865114,17275.0,17274.0,6.70905833]
[1673348322244,0.00865114,17275.0,17274.0,6.08301681]
[1673348323225,0.00865114,17275.0,17274.0,6.14035264]
[1673348323728,0.00865114,17275.0,17274.0,6.72131038]
[1673348324484,0.00865114,17275.0,17274.0,6.14035264]
[1673348325488,0.00865114,17275.0,17274.0,6.75211995]
[1673348325984,0.00865114,17275.0,17274.0,6.14035264]
[1673348327471,0.00865114,17275.0,17274.0,6.82778787]
[1673348327983,0.00865114,17275.0,17274.0,6.14035264]
[1673348328505,0.00865114,17275.0,17274.0,6.08301681]
[1673348328758,0.00865114,17275.0,17274.0,6.14035264]
[1673348329252,0.00865114,17275.0,17274.0,5.54035264]
[1673348329779,0.00865114,17275.0,17274.0,5.48301681]
[1673348330556,0.00865114,17275.0,17274.0,5.54035264]
[1673348331523,0.00865114,17275.0,17274.0,6.35535666]
[1673348332558,0.00865114,17275.0,17274.0,6.55535666]
[1673348334383,0.00865114,17275.0,17274.0,6.59354276]
[1673348335343,0.00286075,17275.0,17274.0,6.59354276]
[1673348337489,0.00286075,17275.0,17274.0,6.59454276]
[1673348338497,0.00286075,17275.0,17274.0,6.14983606]
[1673348339284,0.00286075,17275.0,17274.0,6.31793606]
[1673348339533,0.00286075,17275.0,17274.0,6.31693606]
[1673348339786,0.00286075,17275.0,17274.0,6.31793606]
[1673348343104,0.00286075,17275.0,17274.0,5.30293204]
[1673348343618,0.00286075,17275.0,17274.0,5.79931136]
[1673348343870,0.00286075,17275.0,17274.0,6.31758637]
[1673348344373,0.00286075,17275.0,17274.0,5.798277]
[1673348344629,0.00286075,17275.0,17274.0,5.79669181]
[1673348344889,0.00286075,17275.0,17274.0,5.30033097]
[1673348345142,0.00286075,17275.0,17274.0,5.79670661]
[1673348346342,0.00286075,17275.0,17274.0,6.31601598]
[1673348346595,0.00286075,17275.0,17274.0,6.66371598]
[1673348347889,0.00286075,17275.0,17274.0,6.49661598]
[1673348350583,0.00286075,17275.0,17274.0,6.35761598]
[1673348350812,0.00286075,17275.0,17274.0,6.49761598]
[1673348353623,0.00286075,17275.0,17274.0,7.09761598]
[1673348354398,0.00286075,17275.0,17274.0,6.79766972]
[1673348354655,0.00286075,17275.0,17274.0,5.78198471]
[1673348354911,0.00286075,17275.0,17274.0,6.21427033]
[1673348355438,0.00286075,17275.0,17274.0,6.21232875]
[1673348356201,0.00286075,17275.0,17274.0,6.21132875]
[1673348356486,0.00286075,17275.0,17274.0,6.03838552]
[1673348356746,0.00286075,17275.0,17274.0,6.51132875]
[1673348357019,0.00274604,17275.0,17274.0,6.51132875]
[1673348357296,0.00274604,17275.0,17274.0,6.16557033]
[1673348357852,0.00274604,17275.0,17274.0,6.51126747]
[1673348358108,0.00274604,17275.0,17274.0,6.16557033]
[1673348358355,0.00274604,17275.0,17274.0,6.51127311]
[1673348358605,0.00274604,17275.0,17274.0,6.16557033]
[1673348358865,0.00274604,17275.0,17274.0,6.51127086]
[1673348360459,0.00274604,17275.0,17274.0,6.4555361]
[1673348360761,0.00274604,17275.0,17274.0,6.51121998]
[1673348362127,0.00274604,17275.0,17274.0,6.16557033]
[1673348362347,0.00274604,17275.0,17274.0,6.51119128]
[1673348362632,0.00274604,17275.0,17274.0,6.45545652]
[1673348363151,0.00274604,17275.0,17274.0,6.28240127]
[1673348363384,0.00274604,17275.0,17274.0,6.28236554]
[1673348365624,0.00274604,17275.0,17274.0,6.71463177]
[1673348365880,0.00274604,17275.0,17274.0,6.28234615]
[1673348368103,0.00274604,17275.0,17274.0,6.10950764]
[1673348368358,0.00274604,17275.0,17274.0,5.74852364]
[1673348368853,0.00274604,17275.0,17274.0,5.48800186]
[1673348369110,0.00274604,17275.0,17274.0,5.22882661]
[1673348369363,0.00274604,17275.0,17274.0,5.48800186]
[1673348369583,0.00274604,17275.0,17274.0,5.58981061]
[1673348370600,0.00274604,17275.0,17274.0,5.22882661]
[1673348371408,0.00274604,17275.0,17274.0,5.58981061]
[1673348371695,0.00274604,17275.0,17274.0,5.28981061]
[1673348371955,0.00274604,17275.0,17274.0,4.92882661]
[1673348372513,0.00274604,17275.0,17274.0,4.75604417]
[1673348373852,0.35606604,17275.0,17274.0,3.89786174]
[1673348374883,0.35606604,17275.0,17274.0,3.75786174]
[1673348375351,0.35606604,17275.0,17274.0,3.82586174]
[1673348375573,0.35606604,17275.0,17274.0,3.75786174]
[1673348375829,0.35706604,17275.0,17274.0,3.75786174]
[1673348378828,0.17184604,17275.0,17274.0,3.75786174]
[1673348395274,0.17184604,17275.0,17274.0,3.157808]
[1673348400803,0.17184604,17275.0,17274.0,3.86499156]
[1673348401322,0.17184604,17275.0,17274.0,3.8646058]
[1673348401833,0.16896504,17275.0,17274.0,3.8646058]
[1673348402853,0.16672704,17275.0,17274.0,3.8646058]
[1673348405176,0.01672704,17275.0,17274.0,3.8646058]
[1673348406227,0.19016268,17275.0,17274.0,3.8646058]
[1673348406435,0.01672704,17275.0,17274.0,3.8646058]
[1673348407929,0.001,17275.0,17274.0,3.8646058]
[1673348409189,0.1687,17275.0,17274.0,3.8646058]
[1673348411384,0.34213564,17275.0,17274.0,3.8646058]
[1673348413955,1.50027935,17275.0,17274.0,3.8646058]
[1673348414210,0.34213564,17275.0,17274.0,3.8646058]
[1673348415962,0.1687,17275.0,17274.0,4.03738824]
[1673348416725,0.1687,17275.0,17274.0,4.63286437]
[1673348416975,0.1687,17275.0,17274.0,4.93286437]
[1673348417726,0.1687,17275.0,17274.0,4.63286437]
[1673348419175,0.001,17275.0,17274.0,4.63286437]
[1673348419427,0.001,17275.0,17274.0,4.29656349]
[1673348419678,0.001,17275.0,17274.0,4.03738824]
[1673348420392,0.001,17275.0,17274.0,4.29656349]
[1673348420893,0.001,17275.0,17274.0,4.03738824]
[1673348421153,0.001,17275.0,17274.0,4.29656349]
[1673348421411,0.001,17275.0,17274.0,4.03738824]
[1673348421640,0.001,17275.0,17274.0,4.33738824]
[1673348421878,0.001,17275.0,17274.0,4.03738824]
[1673348422166,0.01591579,17275.0,17274.0,4.39837224]
[1673348422417,0.01591579,17275.0,17274.0,4.59656349]
[1673348422924,0.00394859,17275.0,17274.0,4.03738824]
[1673348423198,0.00394859,17275.0,17274.0,3.33020468]
[1673348424597,0.00394859,17275.0,17274.0,3.85399262]
[1673348426861,0.00394859,17275.0,17274.0,3.68121018]
[1673348434393,0.18916859,17275.0,17274.0,2.57851824]
[1673348434653,1.04348931,17275.0,17274.0,1.99961424]
[1673348434913,2.99710191,17275.0,17274.0,1.99961424]
[1673348435164,3.44108687,17275.0,17274.0,1.99961424]
[1673348435938,3.87508529,17275.0,17274.0,1.99961424]
[1673348436193,3.44087989,17275.0,17274.0,1.99961424]
[1673348436455,2.99689493,17275.0,17274.0,1.99961424]
[1673348437219,3.17078407,17275.0,17274.0,1.99961424]
[1673348437492,3.44083172,17275.0,17274.0,1.99961424]
[1673348437762,2.99684676,17275.0,17274.0,1.99961424]
[1673348440665,3.16394676,17275.0,17274.0,1.99961424]
[1673348440943,2.99004692,17275.0,17274.0,1.99961424]
[1673348441437,3.33741124,17275.0,17274.0,1.99961424]
[1673348441657,2.99004692,17275.0,17274.0,1.99961424]
[1673348441926,3.33741124,17275.0,17274.0,1.99961424]
[1673348442190,2.99004692,17275.0,17274.0,1.99961424]
[1673348443376,3.16394676,17275.0,17274.0,1.99961424]
[1673348444111,2.99003151,17275.0,17274.0,1.99961424]
[1673348444871,2.9900242,17275.0,17274.0,1.99961424]
[1673348445119,3.60793172,17275.0,17274.0,1.99961424]
[1673348445617,3.78186903,17275.0,17274.0,1.99961424]
[1673348445865,4.2882875,17275.0,17274.0,1.99961424]
[1673348446117,3.60781555,17275.0,17274.0,1.99961424]
[1673348446334,3.16383059,17275.0,17274.0,1.99961424]
[1673348447021,3.16383059,17275.0,17274.0,1.99954423]
[1673348448825,3.60781555,17275.0,17274.0,1.99954423]
[1673348449324,2.99663059,17275.0,17274.0,1.99954423]
[1673348450792,2.82265447,17275.0,17274.0,1.99954423]
[1673348451317,1.47925779,17275.0,17274.0,1.99954423]
[1673348451560,2.27650844,17275.0,17274.0,1.99954423]
[1673348451808,2.63749244,17275.0,17274.0,1.99954423]
[1673348453026,2.56779232,17275.0,17274.0,1.99954423]
[1673348453289,4.12003378,17275.0,17274.0,1.99954423]
[1673348453542,4.11929149,17275.0,17274.0,1.99954423]
[1673348454045,4.46605471,17275.0,17274.0,1.99954423]
[1673348454291,4.12829149,17275.0,17274.0,2.01054423]
[1673348454801,4.47498259,17275.0,17274.0,2.01054423]
[1673348455116,4.12829149,17275.0,17274.0,2.01054423]
[1673348456712,4.47498254,17275.0,17274.0,2.01054423]
[1673348458180,4.47496527,17275.0,17274.0,2.01054423]
[1673348458442,4.12829149,17275.0,17274.0,2.01054423]
[1673348460169,4.47494755,17275.0,17274.0,2.01054423]
[1673348460422,4.12829149,17275.0,17274.0,2.01054423]
[1673348461394,4.12329149,17275.0,17274.0,2.01054423]
[1673348468338,4.30275519,17275.0,17274.0,2.01054423]
[1673348468844,3.85882925,17275.0,17274.0,2.01054423]
[1673348469370,3.01098322,17275.0,17274.0,2.01054423]
[1673348470880,3.44444633,17275.0,17274.0,2.01054423]
[1673348471128,3.18432834,17275.0,17274.0,2.01054423]
[1673348471382,3.44451618,17275.0,17274.0,2.01054423]
[1673348471648,3.01105307,17275.0,17274.0,2.01054423]
[1673348472446,3.18432834,17275.0,17274.0,2.01054423]
[1673348472968,3.6904992,17275.0,17274.0,2.01054423]
[1673348476124,3.52445061,17275.0,17274.0,2.01054423]
[1673348476621,3.16346661,17275.0,17274.0,2.01054423]
[1673348477124,3.16369997,17275.0,17274.0,2.01054423]
[1673348477352,3.17762789,17275.0,17274.0,2.01054423]
[1673348477595,3.62161285,17275.0,17274.0,2.01054423]
[1673348477853,3.17762789,17275.0,17274.0,2.01054423]
[1673348479395,3.52470275,17275.0,17274.0,2.01054423]
[1673348480150,3.17762789,17275.0,17274.0,2.01054423]
[1673348481415,3.62161285,17275.0,17274.0,2.01054423]
[1673348483174,3.17611821,17275.0,17274.0,2.01054423]
[1673348495613,3.62010317,17275.0,17274.0,2.01054423]
[1673348496117,3.17611821,17275.0,17274.0,2.01054423]
[1673348497869,3.18664006,17275.0,17274.0,2.01054423]
[1673348498115,3.18656257,17275.0,17274.0,2.01054423]
[1673348498921,2.74257761,17275.0,17274.0,2.01054423]
[1673348499188,3.18656257,17275.0,17274.0,2.01054423]
[1673348502871,2.74257761,17275.0,17274.0,2.01054423]
[1673348504472,2.10589582,17275.0,17274.0,2.71393607]
[1673348504722,2.10589584,17275.0,17274.0,2.71393607]
[1673348504973,2.20741127,17275.0,17274.0,2.71393607]
[1673348505284,1.77333362,17275.0,17274.0,2.71393607]
[1673348505538,1.77333362,17275.0,17274.0,3.29284007]
[1673348514676,1.599643,17275.0,17274.0,3.29284007]
[1673348523432,1.77333362,17275.0,17274.0,3.29284007]
[1673348526185,3.60179309,17275.0,17274.0,2.01045886]
[1673348526443,3.51879213,17275.0,17274.0,2.01045886]
[1673348527128,3.17154262,17275.0,17274.0,2.01045886]
[1673348527401,3.51861132,17275.0,17274.0,2.01045886]
[1673348528401,3.51861786,17275.0,17274.0,2.01045886]
[1673348529142,3.15763386,17275.0,17274.0,2.01045886]
[1673348529888,3.51861786,17275.0,17274.0,2.01045886]
[1673348530386,3.17154262,17275.0,17274.0,2.01045886]
[1673348530892,3.51861651,17275.0,17274.0,2.01045886]
[1673348531402,3.15763251,17275.0,17274.0,2.01045886]
[1673348532956,3.51861651,17275.0,17274.0,2.01045886]
[1673348534068,3.15763251,17275.0,17274.0,2.01045886]
[1673348534338,3.15752307,17275.0,17274.0,2.01045886]
[1673348536061,3.51850707,17275.0,17274.0,2.01045886]
[1673348536784,3.15752307,17275.0,17274.0,2.01045886]
[1673348537031,3.51850707,17275.0,17274.0,2.01045886]
[1673348537288,2.65164126,17275.0,17274.0,2.01045886]
[1673348538292,3.65315453,17275.0,17274.0,2.01045886]
[1673348538534,4.01413853,17275.0,17274.0,2.01045886]
[1673348539302,3.66706464,17275.0,17274.0,2.01045886]